bitfinex-derivatives/quotes_BTCF0:USTF0_20210102
["timestamp","ask_amount","ask_price","bid_price","bid_amount"]
[1609625075121,0.18043158,31530.0,31529.0,0.00039086]
[1609625075323,0.18082176,31530.0,31529.0,0.00039086]
[1609625075521,0.18082176,31530.0,31524.0,0.00039086]
[1609625075721,0.18082176,31530.0,31523.0,0.0398]
[1609625075722,0.18082176,31530.0,31529.0,0.00039086]
[1609625075921,0.18082176,31530.0,31525.0,0.00039086]
[1609625076121,0.00039018,31529.0,31525.0,0.00039086]
[1609625076323,0.00039018,31529.0,31524.0,0.00039088]
[1609625076522,0.00039018,31529.0,31526.0,0.00039088]
[1609625076723,0.00039018,31529.0,31525.0,0.00039088]
[1609625077125,0.00039018,31529.0,31523.0,0.03940914]
[1609625077524,0.18043158,31524.0,31523.0,0.03940914]
[1609625077726,0.27453158,31524.0,31523.0,0.03940914]
[1609625077924,0.27453158,31524.0,31509.0,5.20273158]
[1609625078125,0.42650183,31524.0,31523.0,0.00039094]
[1609625078326,0.43529683,31524.0,31510.0,0.00039094]
[1609625078725,1.43529683,31524.0,31510.0,0.00039094]
[1609625079427,0.00919645,31522.0,31510.0,0.00039094]
[1609625079627,0.18043158,31511.0,31510.0,0.00039094]
[1609625079828,0.18043158,31511.0,31499.0,1.13819]
[1609625080229,0.18043158,31511.0,31500.0,0.03942523]
[1609625080428,0.18043158,31511.0,31500.0,0.00039103]
[1609625081231,0.18965991,31511.0,31500.0,0.00039103]
[1609625081631,0.18043158,31501.0,31500.0,0.00039103]
[1609625082432,0.69833158,31501.0,31500.0,0.00039103]
[1609625082633,0.69833158,31501.0,31499.0,0.13819]
[1609625082832,0.69833158,31501.0,31500.0,0.00039114]
[1609625083132,0.79273158,31501.0,31500.0,0.10935114]
[1609625083332,0.79273158,31501.0,31482.0,4.108]
[1609625083534,0.18043158,31483.0,31482.0,4.108]
[1609625083735,0.18043158,31483.0,31475.0,0.18043158]
[1609625083935,0.18043158,31483.0,31482.0,0.00039116]
[1609625084137,0.18043158,31483.0,31482.0,0.12758]
[1609625084535,0.18043158,31483.0,31482.0,0.12797118]
[1609625084935,0.18043158,31483.0,31482.0,0.00217118]
[1609625085437,0.27453158,31483.0,31482.0,0.00217118]
[1609625085837,0.27453158,31483.0,31482.0,0.00178]
[1609625088141,0.27453158,31483.0,31468.0,0.13315]
[1609625088341,0.27453158,31483.0,31462.0,0.18043158]
[1609625088743,1.0,31470.0,31462.0,0.18043158]
[1609625088943,1.0,31470.0,31463.0,0.00039141]
[1609625089142,1.0,31470.0,31462.0,0.18043158]
[1609625089542,0.18043158,31463.0,31462.0,0.18043158]
[1609625094150,0.18043158,31463.0,31462.0,0.78693158]
[1609625095150,0.18043158,31463.0,31453.0,0.16273]
[1609625095550,4.635,31475.0,31456.0,0.18043158]
[1609625095951,0.14787661,31476.0,31456.0,0.18043158]
[1609625096351,0.02700718,31473.0,31456.0,0.18043158]
[1609625097153,0.00906482,31474.0,31456.0,0.18043158]
[1609625097651,0.18043158,31459.0,31456.0,0.18043158]
[1609625098655,0.18043158,31459.0,31455.0,0.1049]
[1609625099657,0.18043158,31459.0,31456.0,0.18043158]
[1609625100058,0.0948,31458.0,31456.0,0.18043158]
[1609625100660,0.0948,31458.0,31456.0,4.90223158]
[1609625101261,0.0957,31457.0,31456.0,4.90223158]
[1609625101661,0.18043158,31465.0,31456.0,4.90223158]
[1609625101861,0.18043158,31465.0,31456.0,4.90262306]
[1609625102061,0.2839,31468.0,31456.0,4.90223158]
[1609625102263,0.2839,31468.0,31457.0,0.00039145]
[1609625102964,0.095,31469.0,31457.0,0.00039145]
[1609625103165,0.0090345,31475.0,31466.0,4.2285]
[1609625103566,0.0090345,31475.0,31467.0,0.00039139]
[1609625103770,0.0090345,31475.0,31474.0,0.78233158]
[1609625104366,0.0948,31475.0,31474.0,0.78233158]
[1609625104767,5.076e-05,31478.0,31474.0,0.78272293]
[1609625105067,0.15639,31483.0,31474.0,0.78272293]
[1609625105266,0.2983,31487.0,31475.0,0.00039132]
[1609625105669,0.2983,31487.0,31486.0,0.18043158]
[1609625106269,0.2983,31487.0,31483.0,3.9883]
[1609625106871,0.45922,31487.0,31483.0,3.9883]
[1609625107572,0.45922,31487.0,31484.0,0.0003875]
[1609625107773,0.45922,31487.0,31486.0,0.18043158]
[1609625108373,0.45922,31487.0,31486.0,0.18081908]
[1609625110476,0.45922,31487.0,31486.0,0.0003875]
[1609625110975,0.45922,31487.0,31484.0,0.00038752]
[1609625112878,0.45922,31487.0,31483.0,3.98791248]
[1609625113680,0.45922,31487.0,31486.0,0.18043158]
[1609625114180,0.45922,31487.0,31486.0,0.18081909]
[1609625121391,0.45922,31487.0,31486.0,0.00038751]
[1609625121792,0.45922,31487.0,31484.0,0.00038754]
[1609625121993,0.45922,31487.0,31486.0,0.00038754]
[1609625122293,0.45922,31487.0,31484.0,0.00038754]
[1609625122595,0.45922,31487.0,31486.0,0.00038754]
[1609625122797,0.45922,31487.0,31485.0,0.00038754]
[1609625123096,0.45922,31487.0,31484.0,0.00038754]
[1609625123395,0.45922,31487.0,31486.0,0.00038754]
[1609625123597,0.45922,31487.0,31483.0,5.1487]
[1609625123598,0.45922,31487.0,31485.0,0.00038754]
[1609625123995,0.45922,31487.0,31484.0,0.00038756]
[1609625124197,0.45922,31487.0,31486.0,0.00038756]
[1609625124397,0.45922,31487.0,31485.0,0.00038756]
[1609625124796,0.45922,31487.0,31486.0,0.00038756]
[1609625125197,0.45922,31487.0,31484.0,0.00038756]
[1609625125499,0.45922,31487.0,31483.0,4.32913158]
[1609625125500,0.45922,31487.0,31486.0,0.00038756]
[1609625125698,0.45922,31487.0,31485.0,0.00038756]
[1609625125998,0.45922,31487.0,31484.0,0.00038756]
[1609625126198,0.45922,31487.0,31486.0,0.00038756]
[1609625126500,0.45922,31487.0,31484.0,0.00038756]
[1609625126700,0.45922,31487.0,31486.0,0.00038756]
[1609625127001,0.45922,31487.0,31485.0,0.00038756]
[1609625129205,0.16092,31487.0,31484.0,0.00038753]
[1609625129405,0.16092,31487.0,31486.0,0.00038753]
[1609625129605,0.2952,31498.0,31485.0,0.0003875]
[1609625129805,0.18043158,31495.0,31489.0,0.18043158]
[1609625130005,0.31658,31490.0,31489.0,1.18043158]
[1609625130205,0.31658,31490.0,31489.0,1.21987825]
[1609625130405,0.31658,31490.0,31489.0,1.89987825]
[1609625130607,0.31658,31490.0,31489.0,0.89987825]
[1609625131107,0.15978,31490.0,31489.0,0.89987825]
[1609625131306,0.13948,31490.0,31489.0,0.97799262]
[1609625131506,0.13948,31490.0,31489.0,1.97799262]
[1609625132307,0.77426042,31500.0,31489.0,1.97799262]
[1609625132707,0.77426042,31500.0,31499.0,6.0]
[1609625132906,0.77426042,31500.0,31499.0,7.0]
[1609625133107,0.77426042,31500.0,31499.0,7.0394399]
[1609625133707,0.77426042,31500.0,31499.0,7.21987148]
[1609625134106,0.63596199,31511.0,31499.0,7.21987148]
[1609625134307,0.63596199,31511.0,31507.0,5.2297]
[1609625134508,0.63596199,31511.0,31508.0,1.0]
[1609625134710,0.63596199,31511.0,31508.0,1.00038738]
[1609625134910,0.53072879,31511.0,31509.0,0.00038738]
[1609625135811,0.53072879,31511.0,31510.0,0.18043158]
[1609625136214,0.53111927,31511.0,31510.0,0.18081896]
[1609625137915,0.53111927,31511.0,31510.0,1.18081896]
[1609625138216,0.53111927,31511.0,31510.0,6.23311896]
[1609625138415,0.53072879,31511.0,31510.0,6.23311896]
[1609625138615,0.53072879,31511.0,31510.0,7.23311896]
[1609625139117,0.53072879,31511.0,31510.0,7.27215809]
[1609625139317,0.53221394,31515.0,31510.0,7.27215809]
[1609625139717,0.53221394,31515.0,31511.0,0.00038728]
[1609625139918,0.1265,31517.0,31511.0,1.0]
[1609625140117,0.53068328,31519.0,31511.0,1.0]
[1609625140317,0.53068328,31519.0,31516.0,0.18043158]
[1609625140520,0.53068328,31519.0,31517.0,0.6984]
[1609625142723,0.53068328,31519.0,31517.0,0.6964558]
[1609625143422,0.81343591,31521.0,31517.0,0.6964558]
[1609625143423,0.7059717,31521.0,31517.0,0.6964558]
[1609625144225,0.7059717,31521.0,31520.0,0.18043158]
[1609625144624,0.7059717,31521.0,31520.0,1.18043158]
[1609625144825,0.1771,31521.0,31520.0,1.18043158]
[1609625145024,0.52862725,31522.0,31520.0,1.18043158]
[1609625145527,0.52849327,31524.0,31520.0,1.18043158]
[1609625146732,0.52849327,31524.0,31523.0,1.0]
[1609625146932,0.52849327,31524.0,31523.0,1.6108]
[1609625147831,0.52849327,31524.0,31523.0,1.6111873]
[1609625148534,0.52762547,31525.0,31523.0,1.6111873]
[1609625148734,0.52762547,31525.0,31523.0,0.6111873]
[1609625148935,0.52762547,31525.0,31524.0,0.0003873]
[1609625149538,0.52727906,31526.0,31524.0,0.0003873]
[1609625150336,0.52727906,31526.0,31525.0,0.18043158]
[1609625150837,0.52727906,31526.0,31525.0,0.18081888]
[1609625153741,0.52776264,31528.0,31525.0,0.178875]
[1609625154140,0.52776264,31528.0,31526.0,0.00038727]
[1609625154344,0.82107789,31530.0,31526.0,0.00038727]
[1609625155245,0.293,31530.0,31526.0,0.00038727]
[1609625155944,0.0202,31526.0,31525.0,0.1784877]
[1609625156244,0.12509,31526.0,31525.0,0.17887499]
[1609625158048,0.12509,31526.0,31525.0,4.42777499]
[1609625158248,0.12548038,31526.0,31525.0,4.42777499]
[1609625158649,0.12548038,31526.0,31525.0,5.42777499]
[1609625162453,0.12509,31526.0,31525.0,6.42777499]
[1609625163353,0.7041352,31538.0,31525.0,6.42777499]
[1609625163553,0.1345,31530.0,31525.0,2.17887499]
[1609625163755,0.1345,31530.0,31526.0,0.0003872]
[1609625163953,0.1345,31530.0,31529.0,4.8905]
[1609625164154,0.1345,31530.0,31529.0,5.8905]
[1609625164353,0.1345,31530.0,31529.0,6.07093158]
[1609625164553,0.1345,31530.0,31529.0,6.07131874]
[1609625164754,0.53167818,31556.0,31529.0,12.07131874]
[1609625165354,0.53167818,31556.0,31530.0,0.00038712]
[1609625165756,0.53167818,31556.0,31530.0,0.03940474]
[1609625166356,0.53167818,31556.0,31555.0,0.18043158]
[1609625166557,0.53167818,31556.0,31555.0,4.63373158]
[1609625166967,0.53321092,31559.0,31555.0,4.63373158]
[1609625167458,0.8198107,31570.0,31555.0,4.63373158]
[1609625167959,0.00039,31569.0,31555.0,4.63373158]
[1609625168160,0.15781,31569.0,31555.0,4.63373158]
[1609625168361,0.15781,31569.0,31568.0,0.18043158]
[1609625168561,0.15742,31569.0,31568.0,0.93923158]
[1609625168761,0.15781006,31569.0,31568.0,0.93923158]
[1609625170865,0.15742,31569.0,31568.0,0.93923158]
[1609625172664,0.15742,31569.0,31568.0,1.93923158]
[1609625173469,0.1771,31575.0,31568.0,1.93923158]
[1609625173667,0.1771,31575.0,31568.0,2.93923158]
[1609625173868,0.5326222,31576.0,31568.0,2.93923158]
[1609625174467,0.5326222,31576.0,31575.0,0.18043158]
[1609625174669,0.5326222,31576.0,31575.0,1.69303158]
[1609625175668,0.5326222,31576.0,31575.0,2.69303158]
[1609625176669,0.5326222,31576.0,31575.0,1.69303158]
[1609625177173,0.55513334,31578.0,31575.0,1.69303158]
[1609625177675,0.77945213,31597.0,31575.0,1.69303158]
[1609625178373,1.51713282,31610.0,31575.0,1.69303158]
[1609625178374,0.2772,31610.0,31575.0,1.69303158]
[1609625178575,0.2772,31610.0,31608.0,0.18043158]
[1609625180377,0.2772,31610.0,31609.0,4.154]
[1609625180577,0.45763158,31610.0,31609.0,4.154]
[1609625182080,0.2772,31610.0,31609.0,4.154]
[1609625182280,0.2772,31610.0,31608.0,0.18043158]
[1609625182480,0.42558,31610.0,31608.0,0.18043158]
[1609625182684,0.42558,31610.0,31609.0,1.0]
[1609625182881,0.14838,31610.0,31609.0,5.5084]
[1609625185285,0.01348,31610.0,31609.0,4.5084]
[1609625187590,0.0939,31624.0,31609.0,4.5084]
[1609625188493,0.0939,31624.0,31623.0,0.18043158]
[1609625188694,0.0939,31624.0,31623.0,1.76413158]
[1609625190697,0.0939,31624.0,31623.0,0.76413158]
[1609625194100,0.23717,31624.0,31623.0,0.76413158]
[1609625196005,0.23717,31624.0,31623.0,0.18043158]
[1609625196205,0.23717,31624.0,31618.0,4.92]
[1609625196604,0.18043158,31619.0,31618.0,5.10043158]
[1609625199008,0.18043158,31619.0,31618.0,4.92]
[1609625202912,0.23717,31624.0,31618.0,4.92]
[1609625203213,0.14327,31624.0,31618.0,4.92]
[1609625203414,0.0938,31628.0,31618.0,4.92]
[1609625203816,0.00038944,31627.0,31618.0,4.92]
[1609625204016,0.12771944,31627.0,31618.0,4.92]
[1609625204515,0.00038944,31626.0,31618.0,4.92]
[1609625204715,0.28847158,31619.0,31618.0,4.92]
[1609625206920,0.28847158,31619.0,31597.0,0.0199]
[1609625207119,0.28847158,31619.0,31616.0,4.2288]
[1609625209122,3.0,31618.0,31616.0,4.2288]
[1609625211625,3.0,31618.0,31617.0,0.00038427]
[1609625212226,3.00038946,31618.0,31617.0,0.00038427]
[1609625213029,3.00038946,31618.0,31616.0,4.2288]
[1609625213228,3.00038946,31618.0,31617.0,0.00038426]
[1609625213428,0.00038946,31617.0,31616.0,4.2288]
[1609625213728,0.00038946,31617.0,31616.0,4.22918427]
[1609625214630,1.00038946,31617.0,31616.0,4.22918427]
[1609625215834,1.00038946,31617.0,31616.0,4.22724517]
[1609625217536,1.00038946,31617.0,31616.0,0.00038427]
[1609625217934,1.00038946,31617.0,31612.0,0.00038427]
[1609625218335,1.00038946,31617.0,31616.0,0.00038429]
[1609625218535,0.00038946,31616.0,31613.0,0.00038429]
[1609625218736,0.18043158,31614.0,31611.0,5.04783158]
[1609625219337,0.18043158,31614.0,31612.0,0.00038429]
[1609625219538,0.18043158,31614.0,31598.0,1.0]
[1609625219737,0.18043158,31614.0,31601.0,3.9974]
[1609625220036,0.18043158,31614.0,31602.0,0.00038429]
[1609625220336,0.00038951,31613.0,31602.0,0.00038429]
[1609625220636,1.0,31608.0,31602.0,0.00038429]
[1609625220837,1.11678,31608.0,31607.0,0.18043158]
[1609625221237,1.11678,31608.0,31602.0,0.00038429]
[1609625221437,1.11678,31608.0,31607.0,0.00038433]
[1609625221636,1.11678,31608.0,31603.0,0.00038433]
[1609625221939,1.11716953,31608.0,31607.0,0.00038433]
[1609625222138,1.11716953,31608.0,31601.0,3.9974]
[1609625222139,0.00038955,31607.0,31604.0,0.00038435]
[1609625222438,0.00038955,31607.0,31602.0,0.00038435]
[1609625222638,1.0,31605.0,31602.0,0.00038435]
[1609625222839,1.0,31605.0,31601.0,3.9974]
[1609625222840,0.18043158,31603.0,31601.0,3.9974]
[1609625223238,0.00038955,31602.0,31601.0,3.9974]
[1609625223738,0.00038955,31602.0,31601.0,3.9977844]
[1609625223939,0.00038955,31602.0,31601.0,0.0003844]
[1609625224340,0.00038955,31602.0,31589.0,4.2819844]
[1609625224542,0.00038955,31602.0,31589.0,4.2816]
[1609625224741,0.18043158,31590.0,31589.0,4.2816]
[1609625224941,0.18043158,31590.0,31573.0,1.0]
[1609625225141,0.33880119,31590.0,31589.0,0.00038441]
[1609625225342,0.00038964,31589.0,31576.0,4.1303]
[1609625225541,0.33880122,31590.0,31576.0,4.1303]
[1609625225943,0.00038964,31589.0,31577.0,0.00038445]
[1609625226344,0.0939,31588.0,31574.0,0.00038449]
[1609625226545,0.00038964,31589.0,31574.0,0.00038449]
[1609625226744,0.18043158,31575.0,31574.0,0.00038449]
[1609625226945,0.29833158,31575.0,31574.0,0.00038449]
[1609625227146,0.29872137,31575.0,31569.0,0.00038457]
[1609625227545,0.00038979,31574.0,31569.0,0.00038457]
[1609625227745,0.00038979,31574.0,31570.0,0.00039227]
[1609625228344,0.00038979,31574.0,31571.0,0.00039226]
[1609625228747,0.00038979,31574.0,31569.0,0.00039228]
[1609625228945,0.01826207,31574.0,31560.0,4.6768]
[1609625229346,0.00038983,31573.0,31561.0,0.00039231]
[1609625229546,4.613,31571.0,31561.0,0.00039231]
[1609625229749,0.52917513,31569.0,31561.0,0.00039231]
[1609625229946,0.52917513,31569.0,31562.0,0.0003924]
[1609625230147,0.00038995,31568.0,31547.0,4.9752]
[1609625230550,0.54443947,31565.0,31546.0,1.0]
[1609625230749,4.439,31556.0,31548.0,0.00039241]
[1609625230949,4.439,31556.0,31547.0,0.00039246]
[1609625231149,4.60712,31556.0,31549.0,0.00039248]
[1609625231349,4.60712,31556.0,31532.0,4.4688]
[1609625231752,0.00039008,31555.0,31533.0,0.00039256]
[1609625231949,5.3198,31548.0,31533.0,0.00039256]
[1609625232151,5.47291,31548.0,31533.0,0.00039256]
[1609625232551,0.00039015,31547.0,31533.0,0.00039256]
[1609625232750,5.0,31544.0,31521.0,4.2215]
[1609625232951,0.18043158,31534.0,31513.0,1.0]
[1609625233150,3.6633,31533.0,31513.0,1.0]
[1609625233351,3.6633,31533.0,31514.0,0.00039267]
[1609625234152,3.6633,31533.0,31515.0,0.00039273]
[1609625234353,0.09449027,31532.0,31515.0,0.00039273]
[1609625234553,3.6633,31533.0,31513.0,1.0]
[1609625234753,1.0,31524.0,31508.0,1.0]
[1609625234954,0.18043158,31514.0,31509.0,0.18043158]
[1609625235152,0.35234158,31514.0,31509.0,0.18043158]
[1609625236057,0.17191,31514.0,31510.0,1.0]
[1609625236257,0.17191,31514.0,31513.0,5.1872]
[1609625236455,0.17191,31514.0,31513.0,6.1872]
[1609625236655,0.17191,31514.0,31513.0,7.1872]
[1609625236858,0.17191,31514.0,31513.0,7.36763158]
[1609625237358,0.18043158,31526.0,31513.0,7.36763158]
[1609625237558,0.18043158,31526.0,31513.0,7.36802419]
[1609625237758,0.18043158,31526.0,31514.0,0.00039259]
[1609625237959,0.1339,31534.0,31514.0,0.00039259]
[1609625238160,0.53828314,31540.0,31514.0,0.00039259]
[1609625238562,0.53828314,31540.0,31513.0,7.36763158]
[1609625238760,0.53828314,31540.0,31533.0,1.0]
[1609625238960,0.18043158,31534.0,31533.0,1.0]
[1609625239160,0.28954158,31534.0,31533.0,1.0]
[1609625239564,0.30697191,31534.0,31533.0,1.0]
[1609625240264,0.12654033,31534.0,31533.0,1.0]
[1609625240664,0.12654033,31534.0,31531.0,0.18043158]
[1609625240863,0.30697191,31534.0,31531.0,0.18043158]
[1609625241264,0.12654033,31534.0,31531.0,0.18043158]
[1609625242265,0.10507,31534.0,31533.0,4.7497]
[1609625242465,0.10507,31534.0,31533.0,5.7497]
[1609625242867,0.10507,31534.0,31533.0,11.7497]
[1609625243066,0.40939734,31536.0,31533.0,11.7497]
[1609625243467,0.40939734,31536.0,31533.0,5.7497]
[1609625243667,0.86306034,31542.0,31533.0,5.7497]
[1609625243868,0.86306034,31542.0,31534.0,0.0161]
[1609625244269,0.85859652,31574.0,31534.0,0.0161]
[1609625244469,0.85859652,31574.0,31552.0,4.1682]
[1609625244668,0.85859652,31574.0,31553.0,1.0]
[1609625244869,0.46003158,31576.0,31573.0,0.18043158]
[1609625245268,0.46003158,31576.0,31573.0,4.59383158]
[1609625245471,0.46003158,31576.0,31575.0,1.0]
[1609625245668,0.2796,31576.0,31575.0,1.0]
[1609625245869,0.2796,31576.0,31575.0,2.0]
[1609625246070,0.2998,31583.0,31575.0,2.0]
[1609625246670,1.0,31591.0,31575.0,2.0]
[1609625246870,0.18043158,31588.0,31587.0,0.18043158]
[1609625247171,0.33235158,31588.0,31587.0,0.18043158]
[1609625247371,0.33235158,31588.0,31587.0,1.18043158]
[1609625249374,0.33235158,31588.0,31587.0,0.18043158]
[1609625249575,0.31235158,31588.0,31587.0,0.18043158]
[1609625249976,0.31235158,31588.0,31586.0,1.0]
[1609625251076,0.31235158,31588.0,31587.0,4.5847]
[1609625253281,0.31235158,31588.0,31583.0,0.18043158]
[1609625254885,0.18043158,31584.0,31583.0,0.18043158]
[1609625264601,0.18043158,31584.0,31583.0,1.18043158]
[1609625267505,0.18043158,31584.0,31583.0,2.18043158]
[1609625271012,0.18043158,31584.0,31583.0,5.85523158]
[1609625271315,0.18043158,31584.0,31583.0,5.85562361]
[1609625271612,0.18043158,31584.0,31583.0,5.85523158]
[1609625271811,0.18043158,31584.0,31583.0,5.85562361]
[1609625272112,0.18043158,31584.0,31583.0,5.85523158]
[1609625272312,0.18043158,31584.0,31583.0,5.85562362]
[1609625272513,0.18043158,31584.0,31583.0,5.89457845]
[1609625272712,0.18043158,31584.0,31583.0,4.89457845]
[1609625272913,0.18043158,31584.0,31583.0,5.89457845]
[1609625273612,0.15192,31588.0,31583.0,5.89457845]
[1609625273812,1.0,31599.0,31583.0,4.89457845]
[1609625274013,1.0,31599.0,31584.0,0.03934749]
[1609625274212,0.00038955,31598.0,31584.0,0.03934749]
[1609625274413,0.14772955,31598.0,31584.0,0.03934749]
[1609625274613,0.14772955,31598.0,31584.0,0.00039204]
[1609625274814,0.00038961,31597.0,31585.0,0.0003921]
[1609625275020,0.18043158,31586.0,31585.0,0.0003921]
[1609625275217,0.35245158,31586.0,31585.0,0.0003921]
[1609625275414,0.35245158,31586.0,31584.0,0.00039212]
[1609625275614,0.35245158,31586.0,31585.0,0.00039212]
[1609625276113,0.35245158,31586.0,31584.0,0.00039212]
[1609625276314,0.35245158,31586.0,31585.0,0.00039212]
[1609625276714,0.35245158,31586.0,31584.0,0.00039212]
[1609625276915,0.35245158,31586.0,31585.0,0.00039212]
[1609625277415,1.0,31585.0,31584.0,0.00039214]
[1609625277616,1.0,31585.0,31583.0,3.85523158]
[1609625277817,1.0,31585.0,31583.0,3.84523158]
[1609625278016,1.0,31585.0,31584.0,0.00039215]
[1609625279320,0.35245158,31586.0,31584.0,0.00039215]
[1609625279820,0.35245158,31586.0,31583.0,3.83523158]
[1609625281623,0.35245158,31586.0,31583.0,3.82523158]
[1609625282924,0.35245158,31586.0,31584.0,0.00039212]
[1609625283526,0.35245158,31586.0,31583.0,3.81523158]
[1609625286426,0.35245158,31586.0,31583.0,0.14043158]
[1609625286927,0.35245158,31586.0,31585.0,4.097]
[1609625287327,1.35245158,31586.0,31585.0,4.0973921]
[1609625288128,1.35284123,31586.0,31585.0,4.0973921]
[1609625289131,1.35284123,31586.0,31585.0,2.0980921]
[1609625289331,6.44904123,31586.0,31585.0,0.0003921]
[1609625289731,6.44904123,31586.0,31574.0,4.113]
[1609625289933,6.44904123,31586.0,31554.0,0.03897219]
[1609625290133,6.44904123,31586.0,31553.0,1.0]
[1609625290334,4.2967,31581.0,31555.0,0.03937006]
[1609625290533,4.2967,31581.0,31554.0,5.22969033]
[1609625290734,0.00038983,31580.0,31556.0,0.00039036]
[1609625291133,0.18043158,31557.0,31555.0,0.00039036]
[1609625291333,0.33031158,31557.0,31554.0,5.2293]
[1609625291535,0.33031158,31557.0,31556.0,0.00039036]
[1609625291935,0.33031158,31557.0,31555.0,0.00039036]
[1609625292135,0.33031158,31557.0,31556.0,0.00039038]
[1609625292634,0.33031158,31557.0,31555.0,0.00039038]
[1609625292833,0.33031158,31557.0,31556.0,0.00039041]
[1609625293236,0.33031158,31557.0,31555.0,0.00039041]
[1609625293436,1.33031158,31557.0,31556.0,0.00039041]
[1609625294039,1.33031158,31557.0,31553.0,0.00039043]
[1609625294238,1.33031158,31557.0,31537.0,1.0]
[1609625294438,1.33031158,31557.0,31537.0,5.1821]
[1609625294739,1.33031158,31557.0,31538.0,0.00039046]
[1609625295139,1.14988,31557.0,31544.0,3.8133]
[1609625295340,0.14988,31557.0,31544.0,3.8133]
[1609625295539,0.14988,31557.0,31545.0,0.00039048]
[1609625295739,0.14988,31557.0,31544.0,3.8133]
[1609625296744,4.67465853,31570.0,31544.0,3.8133]
[1609625297044,0.18043158,31545.0,31544.0,3.8133]
[1609625297241,0.29811158,31545.0,31544.0,3.8133]
[1609625297442,0.29811158,31545.0,31544.0,3.81369044]
[1609625297642,0.29811158,31545.0,31544.0,4.81369044]
[1609625299142,0.29811158,31545.0,31544.0,3.81369044]
[1609625299543,0.29811158,31545.0,31544.0,3.8133]
[1609625302145,0.29811158,31545.0,31536.0,0.18043158]
[1609625302346,0.29811158,31545.0,31540.0,4.4466]
[1609625303150,0.18043158,31541.0,31540.0,4.4466]
[1609625305453,1.18043158,31541.0,31540.0,4.4466]
[1609625306353,1.18043158,31541.0,31536.0,0.18043158]
[1609625307055,0.18043158,31537.0,31536.0,0.18043158]
[1609625307253,0.29367158,31537.0,31536.0,0.18043158]
[1609625309558,0.29367158,31537.0,31536.0,4.41063158]
[1609625311160,0.29367158,31537.0,31536.0,4.2302]
[1609625311763,0.29367158,31537.0,31536.0,4.23059055]
[1609625324284,0.29367158,31537.0,31536.0,4.03059055]
[1609625326387,4.22095158,31556.0,31536.0,4.03059055]
[1609625326587,0.12013,31537.0,31536.0,4.03059055]
[1609625326788,0.12013,31537.0,31536.0,4.0302]
[1609625327189,0.30056158,31537.0,31536.0,4.21102213]
[1609625330195,0.30056158,31537.0,31536.0,4.25002403]
[1609625331797,0.30056158,31537.0,31536.0,4.25002404]
[1609625333500,0.12013,31537.0,31536.0,5.25002404]
[1609625333700,1.0,31551.0,31536.0,5.25002404]
[1609625334101,0.00038999,31550.0,31537.0,0.03938911]
[1609625334501,0.17201,31550.0,31537.0,0.03938911]
[1609625334701,0.17201,31550.0,31537.0,0.11737086]
[1609625334902,0.17201,31550.0,31538.0,1.0]
[1609625335302,0.17201,31550.0,31549.0,0.18043158]
[1609625335501,0.17201,31550.0,31549.0,1.18043158]
[1609625335702,0.17201,31550.0,31549.0,1.18082195]
[1609625336004,0.17201,31550.0,31549.0,6.10202195]
[1609625336204,0.17201,31550.0,31549.0,6.14100366]
[1609625336406,0.18043158,31557.0,31549.0,6.14100366]
[1609625336604,0.18043158,31557.0,31549.0,6.10202195]
[1609625336805,0.18043158,31557.0,31550.0,0.0003903]
[1609625337005,0.1771,31571.0,31550.0,0.0003903]
[1609625337208,0.53643158,31568.0,31567.0,0.18043158]
[1609625337607,0.53643158,31568.0,31567.0,5.45032185]
[1609625337807,0.18043158,31568.0,31567.0,5.45032185]
[1609625338007,0.18043158,31568.0,31567.0,5.44993158]
[1609625340512,0.18043158,31568.0,31567.0,5.2695]
[1609625342314,0.34268158,31568.0,31567.0,5.2695]
[1609625343918,0.16225,31568.0,31567.0,5.2695]
[1609625344517,0.16225,31568.0,31567.0,6.2695]
[1609625347223,0.1199,31575.0,31567.0,6.2695]
[1609625347623,0.1199,31575.0,31568.0,0.0003901]
[1609625349225,0.18043158,31595.0,31574.0,0.18043158]
[1609625349426,0.14734,31598.0,31575.0,1.0]
[1609625349624,0.64347141,31602.0,31594.0,4.9732]
[1609625349825,0.64382265,31604.0,31595.0,1.0]
[1609625351430,0.64382265,31604.0,31603.0,0.18043158]
[1609625352027,0.64382265,31604.0,31603.0,4.43143158]
[1609625352427,0.1771,31607.0,31603.0,4.43143158]
[1609625352428,0.6441118,31605.0,31603.0,4.43143158]
[1609625352827,0.6441118,31605.0,31603.0,4.40143158]
[1609625353327,0.18043158,31604.0,31603.0,4.40143158]
[1609625353527,0.33263158,31604.0,31603.0,4.40143158]
[1609625354031,0.33263158,31604.0,31603.0,4.251]
[1609625355230,0.33263158,31604.0,31595.0,1.0]
[1609625355430,1.33263158,31604.0,31595.0,0.18043158]
[1609625355831,1.33263158,31604.0,31596.0,0.5073]
[1609625356032,1.33263158,31604.0,31595.0,0.18043158]
[1609625356231,1.33263158,31604.0,31595.0,4.65123158]
[1609625357333,1.33263158,31604.0,31587.0,1.0]
[1609625357334,1.1522,31604.0,31599.0,0.18043158]
[1609625357531,0.1522,31604.0,31583.0,1.0]
[1609625357731,0.1522,31604.0,31593.0,4.379]
[1609625357932,0.1522,31604.0,31583.0,2.0]
[1609625358134,0.1522,31604.0,31591.0,4.8833]
[1609625358534,0.1771,31607.0,31591.0,4.8833]
[1609625359433,0.1771,31607.0,31598.0,0.18043158]
[1609625359633,0.1771,31607.0,31591.0,4.8833]
[1609625359836,0.28862,31607.0,31591.0,4.8833]
[1609625361336,0.28862,31607.0,31592.0,0.18043158]
[1609625361536,1.0,31597.0,31592.0,0.18043158]
[1609625361737,1.12724,31597.0,31592.0,0.18043158]
[1609625362138,1.12724,31597.0,31591.0,4.8833]
[1609625363339,0.18043158,31594.0,31591.0,4.8833]
[1609625363940,0.18043158,31594.0,31592.0,0.00038723]
[1609625364140,0.18043158,31594.0,31591.0,4.8833]
[1609625365342,0.18043158,31594.0,31592.0,0.00038728]
[1609625367848,0.18043158,31594.0,31581.0,1.0]
[1609625368047,0.18043158,31594.0,31585.0,4.2226]
[1609625368648,0.18043158,31594.0,31586.0,0.00038733]
[1609625369349,0.18043158,31587.0,31586.0,0.00038733]
[1609625369549,1.32911158,31587.0,31586.0,0.00038733]
[1609625370850,1.32911158,31587.0,31579.0,5.2374]
[1609625371352,1.14868,31587.0,31580.0,0.00038738]
[1609625371551,1.0,31584.0,31580.0,0.00038738]
[1609625373354,0.18043158,31581.0,31580.0,0.00038738]
[1609625375858,0.18043158,31581.0,31580.0,0.03934618]